[Event "FIDE World School-ch O-15 2025"]
[Site "Vrnjacka Banja"]
[Date "2025.03.26"]
[Round "7.1"]
[White "Talgatov, Nazar"]
[Black "Scheglov, Gleb"]
[Result "0-1"]
[Annotator "TA"]
[ECO "B15"]
[WhiteElo "2083"]
[BlackElo "2306"]
[PlyCount "86"]
[EventDate "2025.03.19"]
[EventType "swiss"]
[EventCountry "SRB"]
[SourceTitle "playchess.com"]
[Source "ChessBase"]
[SourceQuality "1"]
[TimeControl "5400+30"]

{[%evp 14,86,28,26,37,25,40,27,34,33,46,37,40,-15,-27,-23,-26,-15,37,-43,-27,-51,19,8,0,0,12,-16,-12,-20,-4,-23,-23,-29,-22,-129,-134,-138,-150,-148,-145,-154,-153,-161,-153,-159,-161,-222,-244,-259,-266,-266,-189,-189,-189,-248,-270,-266,-290,-244,-189,-245,-158,-162,-150,-5293,-5310,-6589,-6425,-5402,-5397,-5273,-5273,-29998,-29999]} 1. e4 {[%emt 1:31:00]} c6 {[%emt 0:02:45]} 2. d4 {[%emt 0:00:00]} d5 {[%emt 0:01:09]} 3. Nd2 {[%emt 0:00:00]} dxe4 {[%emt 0:00:11]} 4. Nxe4 {[%emt 0:00:00]} Nf6 {[%emt 0:00:06]} 5. Nxf6+ {[%emt 0:00:00]} exf6 {[%emt 0:00:02]} 6. c3 {[%emt 0:00:00]} Bd6 {[%emt 0:00:41]} 7. Bd3 {[%emt 0:00:00]} O-O {[%emt 0:00:22]} 8. Qc2 {[%emt 0:00:00]} Re8+ {[%emt 0:00:07] B15: Caro-Kann: 3 Nc3: 3...g6 and 3...dxe4 4 Nxe4 Nf6 5 Nxf6+ exf6.} 9. Ne2 {[%emt 0:00:00]} h5 {[%emt 0:00:07]} 10. Be3 {[%emt 0:00:00]} Nd7 {[%emt 1:30:00][%cal Of6f5] White has an edge.} 11. c4 {[%emt 0:00:00]} f5 $146 {[%emt 0:00:00]} (11... Nf8 12. O-O-O Be6 13. Kb1 Ng6 14. h3 h4 15. Rhe1 Ne7 16. Nc3 Qd7 17. a3 Rac8 {1-0 Nepomniachtchi,I (2771)-Dreev,A (2606) Moscow Dvoretsky Memorial Blitz 2023 (6)}) 12. Bxf5 {[%emt 0:00:00]} Nf6 {[%emt 0:00:00] [#]} 13. Bxc8 {[%emt 0:00:00]} (13. O-O $14) 13... Rxc8 $11 {[%emt 0:00:00]} 14. h3 {[%emt 0:00:00] Against Ng4} Bb4+ {[%emt 0:00:00][%mdl 1024] Black sacrificed a pawn Black has compensation.} 15. Kf1 {[%emt 0:00:00]} Ne4 {[%emt 0:00:00]} (15... b5 $11) 16. g3 {[%emt 0:00:00]} ({White should try} 16. h4 $14) 16... h4 $15 {[%emt 0:00:00]} (16... Qf6 {with more complications.} 17. Kg2 h4 18. g4 Nd2) 17. g4 {[%emt 0:00:00]} Qd7 {[%emt 0:00:00]} ({Better is} 17... Qf6 $1 $15 18. Kg2 Nd2) 18. Rd1 {[%emt 0:00:00]} b5 {[%emt 0:00:00]} 19. Kg2 {[%emt 0:00:00]} Nd6 {[%emt 0:00:00]} 20. b3 {[%emt 0:00:00]} bxc4 {[%emt 0:00:00]} 21. bxc4 {[%emt 0:00:00]} c5 $1 {[%emt 0:00:00]} 22. dxc5 {[%emt 0:00:00]} Bxc5 {[%emt 0:00:00]} 23. Bxc5 {[%emt 0:02:23]} Rxc5 {[%emt 0:00:00]} 24. Qd3 {[%emt 0:00:31]} (24. Nd4 $11 {keeps the balance.}) 24... Qc6+ $17 {[%emt 0:00:00]} (24... Rxc4 25. Qxc4 (25. Qxd6 Qxd6 26. Rxd6 Rxe2 $17) 25... Qb7+ 26. Qd5 Rxe2 27. Qf3 (27. Qxb7 Nxb7 28. Rhe1 Rxe1 $18) 27... Qxf3+ 28. Kxf3 $18) 25. Qf3 {[%emt 0:01:42]} Rxe2 {[%emt 0:00:00]} 26. Rxd6 {[%emt 0:00:07]} Rxf2+ {[%emt 0:00:00] Black attacks} 27. Kxf2 {[%emt 0:00:02]} Qxd6 {[%emt 0:00:00][%mdl 4096] Endgame KQR-KQR} 28. Rd1 {[%emt 0:00:30] [#]} Qb6 {[%emt 0:00:00] aiming for ...Rf5+.} 29. Qe3 {[%emt 0:04:44][%cal Od1d8]} Qf6+ {[%emt 0:00:00]} 30. Kg2 {[%emt 0:01:33]} (30. Qf3 $142) 30... Rxc4 $19 {[%emt 0:00:00]} 31. Qd3 {[%emt 0:01:42]} Qc6+ {[%emt 0:00:00]} 32. Kg1 {[%emt 0:00:16]} Qb6+ {[%emt 0:00:00]} 33. Kg2 {[%emt 0:00:31]} Rc8 {[%emt 0:00:00]} 34. Rb1 {[%emt 0:01:13]} (34. Rd2) 34... Qc6+ {[%emt 0:00:00]} 35. Kg1 {[%emt 0:00:13]} Qc5+ {[%emt 0:00:00]} 36. Kh1 {[%emt 0:00:20]} Re8 {[%emt 0:00:00]} 37. Kg2 {[%emt 0:01:18]} (37. Rf1 {might work better.}) 37... Qa5 {[%emt 0:00:47]} 38. Rb2 {[%emt 0:00:24]} Rd8 {[%emt 0:00:18]} 39. Qe4 {[%emt 0:00:47] Now White is beyond hope.} (39. Qb3 $17) 39... Qc3 {[%emt 0:00:12] ( -> ...Qg3+)} 40. Rf2 {[%emt 0:00:39]} Qg3+ {[%emt 0:00:08]} 41. Kf1 {[%emt 0:00:02]} Qxh3+ {[%emt 0:00:15]} 42. Ke2 {[%emt 0:01:33]} Qc3 {[%emt 0:00:21] ( -> ...Rd2+)} 43. Qe7 {[%emt 0:00:00]} Qd3+ {[%emt 0:00:04] Weighted Error Value: White=0.60/Black=0.15 (very precise)   Loses game:     	White=1     	---        Mistake:       	White=6     	Black=2      Inaccurate:     	White=1     	Black=1      OK:         	White=9     	Black=15     Best:        	White=4     	Black=4      Strong:       	---       	Black=1} 0-1

[Event "FIDE World School-ch O-15 2025"]
[Site "Vrnjacka Banja"]
[Date "2025.03.26"]
[Round "7.2"]
[White "Yessengali, Adizhan"]
[Black "Tabatadze, Erekle"]
[Result "0-1"]
[Annotator "TA"]
[ECO "E18"]
[WhiteElo "1955"]
[BlackElo "2180"]
[PlyCount "100"]
[EventDate "2025.03.19"]
[EventType "swiss"]
[EventCountry "SRB"]
[SourceTitle "playchess.com"]
[Source "ChessBase"]
[SourceQuality "1"]
[TimeControl "5400+30"]

{[%evp 21,99,-6,0,-4,14,19,8,10,16,10,13,17,14,0,0,0,8,0,0,0,0,0,3,0,0,-10,-10,-12,-12,-12,-11,-11,-12,-30,-40,-46,-44,-37,-27,-27,-28,-30,-14,-70,0,-13,0,0,0,0,0,0,0,-81,0,0,9,-12,-12,-14,-22,-143,-143,-199,-189,-218,-195,-224,-233,-215,-47,-39,-29,-235,-234,-1633,-1247,-4727,-4619,-889]} 1. d4 {[%emt 0:01:49]} Nf6 {[%emt 0:00:54]} 2. c4 {[%emt 0:00:14]} e6 {[%emt 0:02:03]} 3. Nf3 {[%emt 0:00:11]} b6 {[%emt 0:00:19]} 4. g3 {[%emt 0:00:05]} Bb7 {[%emt 0:00:17]} 5. Bg2 {[%emt 0:00:05]} Be7 {[%emt 0:00:33]} 6. O-O {[%emt 0:00:08]} O-O {[%emt 0:00:40]} 7. Nc3 {[%emt 0:01:07]} d5 {[%emt 0:00:36]} 8. cxd5 {[%emt 0:01:15]} Nxd5 {[%emt 0:00:25]} 9. Ne5 {[%emt 0:16:23]} Nxc3 {[%emt 0:12:32]} 10. bxc3 {[%emt 0:01:04]} Bxg2 {[%emt 0:02:24]} 11. Kxg2 {[%emt 0:00:07]} c5 {[%emt 0:02:12]} 12. Qd3 {[%emt 0:05:52] E18: Queen's Indian: Old Main Line (4 g3 Bb7 5 Bg2 Be7 6 0-0 0-0 7 Nc3).} cxd4 $146 {[%emt 0:08:00]} (12... Qc7 13. Rd1 Nc6 14. Nxc6 Qxc6+ 15. e4 cxd4 16. cxd4 Rfd8 17. Bb2 Rac8 18. Rac1 Qb7 19. Rxc8 Qxc8 {1-0 Reimann,R (2193)-Kolb,W (2066) Augsburg op 2013 (2)}) 13. cxd4 {[%emt 1:08:40]} Qd5+ {[%emt 0:08:38]} 14. e4 {[%emt 0:00:00] The position is equal.} Qb7 {[%emt 0:00:13]} 15. Bf4 {[%emt 0:00:00]} Nd7 {[%emt 0:07:51]} 16. Rac1 {[%emt 0:00:00][%cal Oe5f7] Nxf7! is the strong threat.} Rac8 {[%emt 0:01:41]} 17. f3 {[%emt 0:00:00]} Rfd8 {[%emt 0:11:16]} 18. Rxc8 {[%emt 0:00:00]} Qxc8 {[%emt 0:06:26]} 19. Nxd7 {[%emt 0:00:00]} Qxd7 {[%emt 0:01:02]} 20. Rc1 {[%emt 0:00:00]} Bc5 {[%emt 0:04:47]} 21. Be3 {[%emt 0:00:00]} h6 {[%emt 0:01:25][%cal Rc5d4]} (21... Bxd4 $2 22. Qxd4 Qe7 (22... Qxd4 $2 23. Bxd4 h5 24. Bf2 $18) 23. Qc3 $18) 22. Rc4 {[%emt 0:00:00]} Bd6 {[%emt 0:03:07] Not much happening anymore} 23. d5 {[%emt 0:00:00]} Be5 {[%emt 0:01:34][%cal Re6d5] Prevents Rd4.} 24. f4 {[%emt 0:00:00]} Bf6 {[%emt 0:06:02]} 25. d6 {[%emt 0:00:00]} Qxd6 {[%emt 0:01:28]} 26. Qxd6 Rxd6 $11 {[%emt 0:00:04][%mdl 4096] Endgame KRB-KRB. Black is a pawn up.} 27. e5 {[%emt 0:00:00]} Rd3 {[%emt 0:00:05]} 28. Kf2 {[%emt 0:01:45]} Bd8 {[%emt 0:01:05]} 29. Rc8 {[%emt 0:00:03]} Kf8 {[%emt 0:01:53]} 30. Ra8 {[%emt 0:00:02]} Rd7 {[%emt 0:00:12]} 31. g4 {[%emt 0:02:00]} Ke8 {[%emt 0:01:39]} 32. h4 {[%emt 0:01:40]} (32. Kf3 $11) 32... Rc7 {[%emt 0:04:47]} (32... Rd5 $1 $15) 33. f5 {[%emt 0:00:09]} exf5 {[%emt 0:01:36]} 34. gxf5 {[%emt 0:00:12]} Kd7 {[%emt 0:02:06]} 35. h5 {[%emt 0:00:52]} Rc2+ {[%emt 0:01:11]} 36. Kf3 {[%emt 0:00:05]} Rxa2 {[%emt 0:00:13]} 37. Bf2 {[%emt 0:00:38]} (37. Bd4 $11) 37... Bc7 {[%emt 0:01:07]} (37... Ra4 $1 $17) 38. Bd4 $1 {[%emt 0:00:47]} Kc6 {[%emt 0:05:01]} 39. Ke4 {[%emt 0:01:52]} Re2+ {[%emt 0:01:09]} 40. Kd3 {[%emt 0:00:04]} Re1 {[%emt 0:00:13]} 41. Kd2 {[%emt 0:01:58] [#]} (41. Bc3 $1 $11 {keeps the balance.} Rh1 42. e6 Rh3+ (42... Rxh5 $2 43. e7 $18) (42... fxe6 43. fxe6 Rh3+ 44. Ke4 $15) 43. Ke4 fxe6 (43... Rxc3 $2 44. e7 $18) 44. fxe6) 41... Re4 $1 $17 {[%emt 0:01:25]} 42. Kd3 {[%emt 0:00:04]} (42. Bb2 $17 {was worth a try.}) 42... Kd5 $19 {[%emt 0:00:08]} 43. Bc3 {[%emt 0:01:32]} Rh4 {[%emt 0:00:15] and ...Rh3+ would now be decisive} ({Stronger than} 43... Bxe5 44. Rd8+ (44. Rxa7 $2 {is the wrong capture.} Rh4 $19) 44... Kc5 45. Rc8+ Kd5 46. Rd8+ Kc5 47. Kxe4 Bxc3 48. Rc8+ (48. Rd7 a5 $11) 48... Kb4 49. Kd3 $11 (49. Rc7 a5 $11)) 44. e6 {[%emt 0:00:53]} fxe6 {[%emt 0:00:28]} 45. Rxa7 {[%emt 0:00:05] [#]} Rh3+ $2 {[%emt 0:01:58]} (45... Bd6 $1 $19 46. fxe6 Rh3+ (46... Kxe6 47. Bxg7 Rh3+ 48. Kd2 $15) (46... Rxh5 47. e7 $11) 47. Kc2 Kxe6 48. Bxg7 Rxh5) 46. Kc2 $15 {[%emt 0:01:08]} Bd6 {[%emt 0:00:00]} 47. fxe6 {[%emt 0:00:26] This move loses the game for White.} (47. Rd7 $1 $11 {and White has nothing to worry.}) 47... Kxe6 $19 {[%emt 0:00:03]} 48. Rxg7 $2 {[%emt 0:00:11] [#]} (48. Bxg7 Rh2+ (48... Rxh5 $2 49. Bd4 $19) 49. Kd3) 48... Rxc3+ $1 {[%emt 0:00:04][%mdl 512] Black is clearly winning.} 49. Kd2 {[%emt 0:00:12]} (49. Kb2 Rg3) 49... Rh3 {[%emt 0:00:11]} 50. Rg6+ {[%emt 0:00:05]} Kd5 {[%emt 0:00:05] Weighted Error Value: White=0.53/Black=0.12 (very precise)   Loses game:     	White=1     	---        Missed win:     	---       	Black=1      Mistake:       	White=5     	Black=2      Inaccurate:     	White=1     	---        OK:         	White=9     	Black=17     Best:        	White=3     	Black=1      Strong:       	White=1     	Black=1      Brilliant:      	---       	Black=1} 0-1

[Event "FIDE World School-ch O-15 2025"]
[Site "Vrnjacka Banja"]
[Date "2025.03.26"]
[Round "7.3"]
[White "Tulendinov, Dinmukhammed"]
[Black "Kabinazar, Nurmukhammed"]
[Result "1/2-1/2"]
[Annotator "TA"]
[ECO "C80"]
[WhiteElo "2173"]
[BlackElo "2057"]
[PlyCount "96"]
[EventDate "2025.03.19"]
[EventType "swiss"]
[EventCountry "SRB"]
[SourceTitle "playchess.com"]
[Source "ChessBase"]
[SourceQuality "1"]
[TimeControl "5400+30"]

{[%evp 14,96,29,0,0,-3,0,0,2,-4,21,8,19,11,18,16,36,36,73,31,77,65,76,61,93,66,78,64,149,103,174,107,151,150,154,114,114,114,107,107,139,144,141,122,196,142,248,199,218,235,233,172,158,146,192,170,280,293,289,277,264,215,264,249,285,269,297,289,300,122,137,128,177,157,247,258,605,0,-1,-11,-10,-11,725,709,661]} 1. e4 {[%emt 0:00:18]} e5 {[%emt 0:00:04]} 2. Nf3 {[%emt 0:00:43]} Nc6 {[%emt 0:00:06]} 3. Bb5 {[%emt 0:00:05]} a6 {[%emt 0:00:09]} 4. Ba4 {[%emt 0:00:10]} Nf6 {[%emt 0:00:34]} 5. O-O {[%emt 1:31:44][%cal Bh1f1,Bf1e1,Be1e5][%mdl 32]} Nxe4 {[%emt 0:01:23]} 6. Re1 {[%emt 0:00:00]} Nc5 {[%emt 0:00:15]} 7. Bxc6 {[%emt 0:00:00]} dxc6 {[%emt 0:00:09]} 8. d4 {[%emt 0:00:00]} Ne6 {[%emt 0:00:22][%cal Re5d4] Prevents Bg5. C80: Open Ruy Lopez: Sidelines and 9 Nbd2.} 9. Rxe5 {[%emt 0:00:00]} Bd6 {[%emt 0:06:14]} 10. Re1 {[%emt 0:00:00]} O-O {[%emt 0:00:26] The position is equal.} 11. Nbd2 {[%emt 0:00:00]} b6 {[%emt 0:22:00]} 12. Ne4 {[%emt 0:00:00]} Be7 {[%emt 0:04:01]} 13. b3 $146 {[%emt 0:00:00]} (13. c3 Bb7 14. Ng3 c5 15. Nf5 Bf6 16. dxc5 Nxc5 17. Qxd8 Raxd8 18. N5d4 Nd3 19. Rd1 Nxc1 20. Raxc1 {0-1 Sipos,S (1674)-Sulyok,E (1857) EU-ch U18 Girls rapid 2023 (1)}) 13... a5 {[%emt 0:08:15]} 14. Bb2 {[%emt 0:00:00]} Bb7 {[%emt 0:02:04]} 15. c4 {[%emt 0:00:00]} a4 {[%emt 0:06:24]} 16. Qc2 {[%emt 0:00:00]} b5 {[%emt 0:06:58]} (16... Bb4 $14 {deserves consideration.}) 17. Rad1 $16 {[%emt 0:00:00]} axb3 {[%emt 0:05:20]} 18. axb3 {[%emt 0:00:00]} Bb4 {[%emt 0:02:46]} 19. Bc3 {[%emt 0:00:00]} Bxc3 {[%emt 0:01:12]} 20. Qxc3 {[%emt 0:00:00]} Qc8 {[%emt 0:12:42]} (20... Re8 $14) 21. Ne5 {[%emt 0:00:00]} (21. Nh4 $142) 21... Ra2 {[%emt 0:05:11]} (21... Kh8 $16 22. cxb5 cxb5) 22. Nd3 {[%emt 0:00:00]} (22. Qg3 $18 f6 23. Nxc6 Bxc6 24. d5) 22... Qd8 {[%emt 0:04:16] [#]} 23. Nb4 $1 {[%emt 0:00:00]} Ra8 {[%emt 0:00:30]} 24. d5 {[%emt 0:00:00]} cxd5 {[%emt 0:00:38]} 25. cxd5 {[%emt 0:00:00]} Nf4 {[%emt 0:01:00]} 26. Qg3 {[%emt 0:00:00]} Ng6 {[%emt 0:01:20]} (26... Nxd5 $2 27. Nxd5 Bxd5 28. Rxd5 $18) 27. Nc5 {[%emt 0:00:00]} Bc8 {[%emt 0:02:21]} 28. Nc6 $36 {[%emt 0:00:00][%mdl 2048] White has strong initiative. White has more active pieces.} Qf6 {[%emt 0:00:40]} (28... Qd6 $16) 29. Ne4 {[%emt 0:02:51] Excellent horsemanship.} (29. Qxc7 $18 {Threatens to win with Ne4.} Bg4 30. f3) 29... Qb2 {[%emt 0:01:06]} (29... Qf4 $16 30. Ne7+ Kh8 31. Nxc8 Raxc8) 30. Rb1 {[%emt 0:02:29]} Qa3 {[%emt 0:00:41]} 31. Qxc7 {[%emt 0:03:14]} Bf5 {[%emt 0:00:32]} 32. f3 {[%emt 0:00:21][%cal Bf2f3,Bf3e4][%mdl 32]} h5 {[%emt 0:02:29]} 33. Qb6 {[%emt 0:01:11]} Nf4 {[%emt 0:01:07] [#]} (33... Rfe8 $16 34. Qd4 (34. Qxb5 Nf4 $16) 34... Bxe4 35. fxe4 Ne7) 34. Qd4 $1 $18 {[%emt 0:01:47]} (34. Qxb5 $6 Qa2 35. Qf1 (35. Ne7+ $2 Kh7 $17) 35... Nxd5 $16) 34... Kh8 {[%emt 0:01:57]} (34... Rfe8 $142 35. d6 Bxe4 36. fxe4 Qa6) 35. Qd2 {[%emt 0:01:58]} Bxe4 {[%emt 0:00:40]} 36. fxe4 {[%emt 0:00:12]} Qd6 {[%emt 0:00:59]} 37. Kh1 {[%emt 0:00:42]} Rfc8 {[%emt 0:01:33]} 38. Rbd1 {[%emt 0:01:04]} h4 {[%emt 0:00:30]} 39. Qf2 {[%emt 0:00:35]} Qh6 {[%emt 0:00:32]} 40. Rf1 {[%emt 0:00:13]} g5 {[%emt 0:00:22]} 41. Ra1 {[%emt 0:00:49]} (41. Ne7 $18 {has better winning chances.}) 41... Rxa1 $16 {[%emt 0:00:34]} 42. Rxa1 {[%emt 0:00:01]} Kh7 {[%emt 0:00:30]} (42... Qf6 $16 {is a better defense.} 43. Rf1 Ra8) 43. Rd1 $18 {[%emt 0:00:49]} Qg6 {[%emt 0:00:26]} (43... Rxc6 $16 44. dxc6 Qxc6) 44. Qf3 {[%emt 0:00:24]} Qf6 {[%emt 0:00:38] Dodges Ne7} (44... Qh5 45. Qxh5+ Nxh5) 45. g3 $2 {[%emt 0:00:41]} (45. e5 $18 Qf5 46. Ne7 Qxe5 47. Nxc8) 45... hxg3 $11 {[%emt 0:00:18]} 46. hxg3 {[%emt 0:00:05] [#]} Nxd5 {[%emt 0:01:16]} 47. Nd4 {[%emt 0:01:02]} ({Don't go for} 47. Qh5+ $2 Kg7 48. e5 (48. exd5 $2 {is the wrong capture.} Rh8 $19) 48... Qxc6 $19) (47. Rd3 g4) 47... Qh6+ {[%emt 0:00:30][%mdl 8192]} (47... Qxf3+ $11 48. Nxf3 Nf6) 48. Kg2 $18 {[%emt 0:01:02]} g4 {[%emt 0:00:30][%mdl 32768] Weighted Error Value: White=0.37/Black=0.50 An unexpected result.  Loses game:     	---       	Black=1      Missed win:     	White=2     	---        Mistake:       	White=3     	Black=10     Inaccurate:     	White=1     	Black=3      OK:         	White=15    	Black=10     Best:        	White=3     	Black=1      Brilliant:      	---       	Black=1} 1/2-1/2

[Event "FIDE World School-ch O-15 2025"]
[Site "Vrnjacka Banja"]
[Date "2025.03.26"]
[Round "7.4"]
[White "Khaleev, Timofey D"]
[Black "Harabor, David-Alexandru"]
[Result "1/2-1/2"]
[Annotator "NA RC"]
[ECO "B33"]
[WhiteElo "1919"]
[BlackElo "1989"]
[PlyCount "100"]
[EventDate "2025.03.19"]
[EventType "swiss"]
[EventCountry "SRB"]
[SourceTitle "playchess.com"]
[Source "ChessBase"]
[SourceQuality "1"]
[TimeControl "5400+30"]

1. e4 {[%emt 0:00:01]} c5 {[%emt 0:00:09]} 2. Nf3 {[%emt 0:00:04]} Nc6 {[%emt 0:00:07]} 3. d4 {[%emt 0:00:10]} cxd4 {[%emt 0:00:07]} 4. Nxd4 {[%emt 0:00:05]} e5 {[%emt 0:00:09]} 5. Nb5 {[%emt 0:00:15]} Nf6 {[%emt 0:00:39]} 6. N1c3 {[%emt 0:00:27]} d6 {[%emt 0:00:39]} 7. Bg5 {[%emt 0:01:27]} a6 {[%emt 0:00:27]} 8. Na3 {[%emt 0:00:07]} b5 {[%emt 0:06:11]} 9. Nd5 {[%emt 0:00:11]} Be7 {[%emt 0:04:08]} 10. Bxf6 {[%emt 0:00:21]} Bxf6 {[%emt 0:04:28]} 11. c3 {[%emt 0:03:18]} Bg5 {[%emt 0:12:43]} 12. Nc2 {[%emt 0:03:02]} O-O {[%emt 0:15:22]} 13. h4 {[%emt 0:05:45]} Bh6 {[%emt 0:01:15]} 14. g4 {[%emt 0:02:16]} Bf4 {[%emt 0:09:29]} 15. Qf3 {[%emt 0:02:51]} Bb7 {[%emt 0:12:43]} 16. Bg2 {[%emt 0:09:13]} f5 {[%emt 0:08:36]} 17. gxf5 {[%emt 0:02:44]} Ne7 {[%emt 0:00:26]} 18. Nxf4 {[%emt 0:07:07]} exf4 {[%emt 0:07:01]} 19. Qxf4 {[%emt 0:01:43]} Nxf5 {[%emt 0:00:44]} 20. exf5 {[%emt 0:01:05]} Bxg2 {[%emt 0:00:18]} 21. Rg1 {[%emt 0:00:22]} Qe7+ {[%emt 0:00:52]} 22. Ne3 {[%emt 0:00:32]} Be4 {[%emt 0:00:59]} 23. O-O-O {[%emt 0:03:04]} Qe5 {[%emt 0:02:20]} 24. Qxe5 {[%emt 0:01:50]} dxe5 {[%emt 0:00:17]} 25. Rd7 {[%emt 0:01:39]} Rf7 {[%emt 0:00:15]} 26. Rxf7 {[%emt 0:00:40]} Kxf7 {[%emt 0:00:03]} 27. Ng4 {[%emt 0:06:46]} Re8 {[%emt 0:02:59]} 28. Re1 {[%emt 0:01:03]} Bxf5 {[%emt 0:00:11]} 29. Nxe5+ {[%emt 0:00:38]} Kf6 {[%emt 0:00:38]} 30. Ng4+ {[%emt 0:00:50]} Kf7 {[%emt 0:00:04]} 31. Rxe8 {[%emt 0:00:06]} Kxe8 {[%emt 0:00:13]} 32. Ne5 {[%emt 0:04:31]} Ke7 {[%emt 0:01:25]} 33. Kd2 {[%emt 0:03:02]} Kf6 {[%emt 0:01:44]} 34. Nd3 {[%emt 0:05:23]} g5 {[%emt 0:02:20]} 35. h5 {[%emt 0:09:23]} Bg4 {[%emt 0:01:19]} 36. Nc5 {[%emt 0:02:03]} Bxh5 {[%emt 0:01:07]} 37. Nxa6 {[%emt 0:02:35]} Be8 {[%emt 0:00:03]} 38. Ke3 {[%emt 0:03:34]} h5 {[%emt 0:00:27]} 39. Nb4 {[%emt 0:04:21]} h4 {[%emt 0:00:43]} 40. f3 {[%emt 0:00:28]} Kf5 {[%emt 0:01:44]} 41. Kf2 {[%emt 0:01:19]} Ke5 {[%emt 0:02:09]} 42. Nc2 {[%emt 0:02:28]} Kf4 {[%emt 0:00:47]} 43. Nd4 {[%emt 0:00:57]} Bd7 {[%emt 0:00:08]} 44. Ne2+ {[%emt 0:03:51]} Ke5 {[%emt 0:00:07]} 45. Nd4 {[%emt 0:02:33]} Kf4 {[%emt 0:00:09]} 46. b3 {[%emt 0:01:23]} Ke5 {[%emt 0:00:29]} 47. Ne2 {[%emt 0:01:00]} Bc6 {[%emt 0:00:23]} 48. Nd4 {[%emt 0:02:57]} Bd7 {[%emt 0:00:06]} 49. Ne2 {[%emt 0:00:16]} Bc6 {[%emt 0:00:07]} 50. Nd4 {[%emt 0:00:04]} Bd7 {[%emt 0:00:06]} 1/2-1/2

[Event "FIDE World School-ch O-15 2025"]
[Site "Vrnjacka Banja"]
[Date "2025.03.26"]
[Round "7.5"]
[White "Qusaiyn, Altynbek"]
[Black "Urangoo, Gurvanbaatar"]
[Result "0-1"]
[Annotator "NA RC"]
[ECO "C54"]
[WhiteElo "1972"]
[BlackElo "1982"]
[PlyCount "146"]
[EventDate "2025.03.19"]
[EventType "swiss"]
[EventCountry "SRB"]
[SourceTitle "playchess.com"]
[Source "ChessBase"]
[SourceQuality "1"]
[TimeControl "5400+30"]

1. e4 {[%emt 0:00:07]} e5 {[%emt 0:00:08]} 2. Nf3 {[%emt 0:00:05]} Nc6 {[%emt 0:00:04]} 3. Bc4 {[%emt 0:00:04]} Bc5 {[%emt 0:00:03]} 4. c3 {[%emt 0:00:05]} Nf6 {[%emt 0:00:06]} 5. d3 {[%emt 0:00:05]} d6 {[%emt 0:00:16]} 6. a4 {[%emt 0:00:05]} a6 {[%emt 0:00:06]} 7. Be3 {[%emt 0:00:25]} Ba7 {[%emt 0:02:15]} 8. O-O {[%emt 0:07:11]} h6 {[%emt 0:02:32]} 9. Nbd2 {[%emt 0:02:44]} O-O {[%emt 0:02:07]} 10. Re1 {[%emt 0:05:26]} Be6 {[%emt 0:01:37]} 11. a5 {[%emt 0:01:52]} Bxe3 {[%emt 0:24:00]} 12. fxe3 {[%emt 0:00:13]} d5 {[%emt 0:02:52]} 13. exd5 {[%emt 0:00:27]} Bxd5 {[%emt 0:00:46]} 14. e4 {[%emt 0:01:37]} Bxc4 {[%emt 0:04:25]} 15. Nxc4 {[%emt 0:01:58]} Qe7 {[%emt 0:00:42]} 16. b4 {[%emt 0:02:27]} Rad8 {[%emt 0:05:08]} 17. Qe2 {[%emt 0:00:08]} Rfe8 {[%emt 0:03:20]} 18. Rf1 {[%emt 0:07:19]} Qd7 {[%emt 0:08:27]} 19. Rad1 {[%emt 0:00:53]} Re6 {[%emt 0:01:32]} 20. Kh1 {[%emt 0:03:15]} Ne8 {[%emt 0:11:33]} 21. Qe1 {[%emt 0:12:28]} Nd6 {[%emt 0:01:38]} 22. Ne3 {[%emt 0:00:14]} Ne7 {[%emt 0:01:16]} 23. g3 {[%emt 0:15:35]} Qc6 {[%emt 0:04:21]} 24. Kg1 {[%emt 0:06:12]} Nb5 {[%emt 0:05:28]} 25. Nc4 {[%emt 0:00:19]} Ng6 {[%emt 0:00:23]} 26. Rf2 {[%emt 0:02:33]} Qe8 {[%emt 0:02:23]} 27. Ne3 {[%emt 0:11:01]} Red6 {[%emt 0:02:58]} 28. c4 {[%emt 0:01:12]} Na7 {[%emt 0:00:42]} 29. Qc3 {[%emt 0:00:34]} f6 {[%emt 0:03:50]} 30. Nf5 {[%emt 0:01:50]} Re6 {[%emt 0:01:23]} 31. Qb3 {[%emt 0:04:04]} Kh7 {[%emt 0:00:23]} 32. Rb2 {[%emt 0:01:21]} c6 {[%emt 0:01:00]} 33. Qc2 {[%emt 0:00:19]} Kh8 {[%emt 0:00:46]} 34. Rdb1 {[%emt 0:01:03]} Ne7 {[%emt 0:02:53]} 35. Qf2 {[%emt 0:04:31]} Nac8 {[%emt 0:02:34]} 36. Nxe7 {[%emt 0:02:23]} Rxe7 {[%emt 0:00:46]} 37. Ne1 {[%emt 0:01:59]} Nd6 {[%emt 0:00:22]} 38. Ng2 {[%emt 0:02:02]} Red7 {[%emt 0:01:00]} 39. Rf1 {[%emt 0:01:18]} Qh5 {[%emt 0:00:58]} 40. Qe3 {[%emt 0:00:21]} Nf7 {[%emt 0:02:20]} 41. Ne1 {[%emt 0:00:05]} Nd6 {[%emt 0:00:22]} 42. Nf3 {[%emt 0:02:36]} Qg4 {[%emt 0:00:37]} 43. Kg2 {[%emt 0:00:36]} Nf7 {[%emt 0:00:34]} 44. h3 {[%emt 0:00:36]} Qg6 {[%emt 0:00:20]} 45. Rd1 {[%emt 0:00:39]} Nd6 {[%emt 0:00:09]} 46. Rdd2 {[%emt 0:00:06]} Qf7 {[%emt 0:01:05]} 47. Rf2 {[%emt 0:00:58]} Qe6 {[%emt 0:00:16]} 48. Nh4 {[%emt 0:00:32]} Nf7 {[%emt 0:00:34]} 49. Rb3 {[%emt 0:00:26]} Ng5 {[%emt 0:00:12]} 50. Nf5 {[%emt 0:00:31]} Qf7 {[%emt 0:00:49]} 51. h4 {[%emt 0:00:19]} Ne6 {[%emt 0:00:01]} 52. Ra3 {[%emt 0:00:44]} Qg6 {[%emt 0:00:15]} 53. Kh3 {[%emt 0:00:27]} Qh7 {[%emt 0:01:38]} 54. b5 {[%emt 0:00:33]} cxb5 {[%emt 0:00:14]} 55. cxb5 {[%emt 0:00:01]} axb5 {[%emt 0:00:29]} 56. Qb6 {[%emt 0:00:30]} Qg8 {[%emt 0:00:56]} 57. Qxb5 {[%emt 0:00:24]} Qf7 {[%emt 0:00:11]} 58. Rc2 {[%emt 0:00:53]} g6 {[%emt 0:00:44]} 59. Nxh6 {[%emt 0:00:30]} Qg7 {[%emt 0:00:01]} 60. Qc4 {[%emt 0:00:44]} Nd4 {[%emt 0:00:23]} 61. Rf2 {[%emt 0:00:31]} Qxh6 {[%emt 0:00:02]} 62. Rxf6 {[%emt 0:00:01]} Qg7 {[%emt 0:00:13]} 63. Rb6 {[%emt 0:00:16]} Rc7 {[%emt 0:01:23]} 64. Qa4 {[%emt 0:01:01]} Qf7 {[%emt 0:00:52]} 65. Ra1 {[%emt 0:00:17]} Nc6 {[%emt 0:00:25]} 66. Qd1 {[%emt 0:00:43]} Qd7+ {[%emt 0:00:46]} 67. Kg2 {[%emt 0:00:45]} Qd4 {[%emt 0:00:27]} 68. Rab1 {[%emt 0:00:28]} Rdd7 {[%emt 0:00:33]} 69. Qg4 {[%emt 0:00:22]} Qd6 {[%emt 0:00:29]} 70. R6b5 {[%emt 0:00:37]} Rf7 {[%emt 0:00:27]} 71. Rd5 {[%emt 0:00:31]} Qf6 {[%emt 0:00:02]} 72. Ra1 {[%emt 0:00:31]} Nb4 {[%emt 0:00:36]} 73. Rb5 {[%emt 0:00:27]} Nc2 {[%emt 0:00:07]} 0-1